Cogmind - Beta 13 @@@ ROGUE MODE // 2024.04.24 @ 22:47:19 Player: sve9 Result: Destroyed by S-43 Plague with Heavy Machine Gun Performance ------------- Evolutions (7) 3500 Regions Visited (15) 3000 Robots Destroyed (168) 840 Value Destroyed (6612) 6612 Prototype IDs (18) 360 Alien Tech Used (0) 0 Bonus (1728) 1728 TOTAL SCORE: 16040 Bonus ------- High Alert Combat Kills 193 Follower Combat Kills 35 Entered DSFs 500 Met Warlord at Base 500 MAIN.C Attacked Warlord 500 Cogmind --------- Core Integrity 0/1300 Matter 293/300 Energy 99/100 System Corruption 51% Temperature Cool (0) Movement Core (50) Location -3/Research Parts ------- > --- POWER (2) -------- (None) > --- PROPULSION (4) --- (None) > --- UTILITY (10) ----- (None) > --- WEAPON (5) ------- (None) > --- INVENTORY (5) ---- Advanced Power Amplifier High-capacity Matter Pod (200) Peak State ------------ > --- POWER ------------ Light Nuclear Core Light Particle Reactor > --- PROPULSION ------- Enhanced Armored Leg Enhanced Armored Leg Armored Huge Wheel > --- UTILITY ---------- Advanced Heat Sink Advanced Heat Sink High-capacity Storage Unit Experimental Targeting Computer Advanced Kinecellerator Hardened Heavy Armor Plating Makeshift Light Armor Plating > --- WEAPON ----------- Variable Charge Gun Cooled Plasma Rifle Improved KE Penetrator Improved KE Penetrator Improved KE Penetrator > --- INVENTORY -------- Light Nuclear Core Micro Fission Core Advanced Cooling System Compact Battery High-capacity Matter Pod Advanced Sensor Array Improved Signal Interpreter Recoil Nullifier Advanced System Shield Experimental System Shield Experimental System Shield Experimental System Shield Experimental System Shield High-powered Tractor Beam Vortex Catalyst Activator Shock Maul [Rating: 114] Favorites ----------- Power Light Fission Core Engine Light Ion Engine Power Core Light Fission Core Reactor Particle Reactor Propulsion Enhanced Armored Leg Treads Light Treads Leg Enhanced Armored Leg Wheel Armored Huge Wheel Flight Unit Impulse Thruster Array Utility Advanced Heat Sink Device Advanced Heat Sink Storage High-capacity Storage Unit Processor Experimental Targeting Computer Hackware Advanced System Shield Protection Hardened Heavy Armor Plating Weapon Improved KE Penetrator Energy Gun Heavy Laser Energy Cannon Compact HERF Cannon Ballistic Gun Improved KE Penetrator Launcher Rocket Launcher Impact Weapon Shock Maul Slashing Weapon Axe Build | -11 -10 -10 -10 -9 -8 -7 -6 -5 -5 -5 -5 -4 -4 -4 -3 ------- Run | Yrd Mat Min Exi Min Mat Fac Fac Fac Upp Upp War Pro Fac DSF Res Slots Evolved 14 | . . . . . 4 2 2 2 . . . . 2 . 2 Power 1 | . . . . . . . . . . . . . 1 . . Propulsion 2 | . . . . . . 2 . . . . . . . . . Utility 8 | . . . . . 2 . 1 2 . . . . 1 . 2 Weapon 3 | . . . . . 2 . 1 . . . . . . . . Parts Attached 163 | 7 13 10 . 6 40 12 11 21 1 1 4 8 2 6 21 Power 23 | 1 2 1 . 1 5 2 1 1 . 1 1 1 1 2 3 Engine 10 | 1 2 1 . 1 4 1 . . . . . . . . . Core 10 | . . . . . 1 1 1 1 . 1 1 1 1 1 1 Reactor 3 | . . . . . . . . . . . . . . 1 2 Propulsion 29 | 2 4 2 . 2 7 4 1 2 . . . 1 . . 4 Treads 9 | 1 3 1 . 1 2 . . . . . . . . . 1 Leg 7 | . . . . . 3 . . 2 . . . . . . 2 Wheel 9 | 1 1 1 . 1 1 2 1 . . . . 1 . . . Hover . | . . . . . . . . . . . . . . . . Flight 4 | . . . . . 1 2 . . . . . . . . 1 Utility 45 | 2 4 3 . . 10 2 3 9 1 . 2 2 1 . 6 Device 22 | 1 . . . . 5 . 3 7 1 . 1 . 1 . 3 Storage 4 | 1 1 . . . 1 1 . . . . . . . . . Processor 2 | . . . . . 1 . . . . . 1 . . . . Hackware 3 | . . . . . . . . . . . . . . . 3 Protection 14 | . 3 3 . . 3 1 . 2 . . . 2 . . . Artifact . | . . . . . . . . . . . . . . . . Weapon 66 | 2 3 4 . 3 18 4 6 9 . . 1 4 . 4 8 Energy Gun 24 | 1 . 1 . 2 7 3 4 3 . . . 1 . 1 1 Energy Cannon 2 | . . . . . 1 . . . . . . . . . 1 Ballistic Gun 25 | 1 3 2 . . 5 1 1 5 . . . 2 . 1 4 Ballistic Cannon . | . . . . . . . . . . . . . . . . Launcher 7 | . . 1 . 1 3 . . . . . . 1 . 1 . Special Weapon . | . . . . . . . . . . . . . . . . Impact Weapon 7 | . . . . . 1 . 1 1 . . 1 . . 1 2 Slashing Weapon 1 | . . . . . 1 . . . . . . . . . . Piercing Weapon . | . . . . . . . . . . . . . . . . Special Melee Weapon . | . . . . . . . . . . . . . . . . Unidentified Prototypes 16 | . . . . . 5 3 1 2 . . 2 2 . . 1 Corrupted Parts 9 | . . . . . . 1 . . . . . . . . 8 System Corruption 45 | . . . . . . 2 . . . . . . . . 43 Parts Lost 80 | . . 7 . . 16 3 3 10 . . . 4 . 18 19 Power 9 | . . 1 . . 1 . . 1 . . . 1 . 3 2 Propulsion 12 | . . 1 . . 3 . . . . . . 1 . 3 4 Utility 25 | . . 3 . . 4 1 1 3 . . . 2 . 5 6 Weapon 34 | . . 2 . . 8 2 2 6 . . . . . 7 7 Highest Loss Streak 16 | . . 2 . . 14 1 3 3 . . . 2 . 16 11 To Critical Strikes 1 | . . . . . . . . 1 . . . . . . . Average Slot Usage (%) 83 | . 98 98 85 99 83 75 79 83 88 88 87 87 89 75 27 Engine 4 | . 14 14 14 14 5 3 . . . . . . . . . Core 3 | . . . . . 2 3 6 4 5 5 5 4 10 4 . Treads 4 | . 13 19 14 14 4 . . . . . . . . . 1 Leg 4 | . . . . . 2 . . 8 11 11 11 11 10 9 2 Wheel 8 | . 14 8 14 13 7 14 13 5 5 5 5 5 5 3 . Device 11 | . 6 . . . 8 7 13 15 23 23 22 12 15 12 2 Storage 7 | . 14 14 14 14 6 7 6 5 5 5 5 5 5 5 . Processor 1 | . . . . . 7 . . . . . . 5 5 5 3 Protection 7 | . 7 13 14 14 7 7 6 10 5 5 5 9 10 7 . Energy Gun 12 | . 11 2 14 27 13 24 24 9 11 11 5 10 10 9 . Ballistic Gun 12 | . 15 24 . . 14 5 7 16 17 17 17 16 15 11 1 Impact Weapon 1 | . . . . . 1 . . 1 . . 4 . . . 2 Naked Turns 63 | . . . . . . . . . . . . . . . 63 Heaviest Build 119 | 11 24 24 19 23 57 82 88 106 100 100 104 100 108 119 38 Greatest Support 56 | 20 20 40 10 40 28 56 56 56 28 28 28 28 28 40 50 Greatest Overweight (x) 25 | . 7 2 1 2 4 25 1 3 3 3 3 3 3 4 6 Average Overweight (x) 1 | . . 1 1 1 1 1 1 2 3 3 3 3 3 3 . Largest Inventory Capacity 20 | 8 10 10 10 10 15 20 20 20 20 20 20 20 20 20 5 Average Capacity 15 | 7 9 10 10 10 9 19 20 20 20 20 20 20 20 19 5 Most Carried 20 | 5 10 10 8 10 15 20 20 20 20 20 20 20 15 17 5 Average Carried 14 | 2 9 9 8 9 8 17 19 19 19 19 19 17 14 14 2 Final Capacity 20 | 8 10 10 10 10 15 20 20 20 20 20 20 20 20 5 5 Final Carried 20 | 5 10 8 8 10 15 20 20 20 20 20 20 16 14 5 2 Class Distribution -------------------- 37% | Tank 23% | Scavenger-Tank 21% | Mutant 8% | Scavenger-Gunner 7% | Scavenger-Mutant Dominant Class ---------------- Mutant | -10/Materials Mutant | -10/Mines Mutant | -10/Exiles Scavenger-Mutant | -9/Mines Scavenger-Gunner | -8/Materials Tank | -7/Factory Tank | -6/Factory Scavenger-Tank | -5/Factory Tank | -5/Upper Caves Scavenger-Tank | -5/Upper Caves Tank | -5/Warlord Scavenger-Tank | -4/Proximity Caves Scavenger-Gunner | -4/Factory Scavenger-Gunner | -4/DSF Hacker-Mutant | -3/Research Resources | -11 -10 -10 -10 -9 -8 -7 -6 -5 -5 -5 -5 -4 -4 -4 -3 ----------- Run | Yrd Mat Min Exi Min Mat Fac Fac Fac Upp Upp War Pro Fac DSF Res Matter Collected 4251 | 273 217 344 . 76 887 323 229 864 42 102 43 436 . 149 266 Remotely 104 | . . . . . 104 . . . . . . . . . . Salvage Created 8127 | 56 314 491 . 117 1524 789 821 1858 . 179 . 1069 . 616 293 Parts 334 | 6 26 30 . 12 60 36 31 66 . 4 . 39 . 12 12 Haulers Intercepted 13 | . 2 . . . 5 2 3 1 . . . . . . . Recyclers Shooed 7 | . . 1 . . . . . 6 . . . . . . . Parts Field Recycled . | . . . . . . . . . . . . . . . . Retrieved Matter . | . . . . . . . . . . . . . . . . Parts Self-Destructed 39 | . . . . . . . . . . 3 . 36 . . . Prevented . | . . . . . . . . . . . . . . . . Kills | -11 -10 -10 -10 -9 -8 -7 -6 -5 -5 -5 -5 -4 -4 -4 -3 ------- Run | Yrd Mat Min Exi Min Mat Fac Fac Fac Upp Upp War Pro Fac DSF Res Combat Hostiles Destroyed 133 | . 7 13 . 5 26 16 7 26 . 3 . 19 . 7 4 Melee 1 | . . . . . . . . . . . . . . 1 . Guns 106 | . 7 11 . 3 19 12 6 25 . 3 . 16 . 3 1 AOE 22 | . . 2 . 2 7 3 1 1 . . . 3 . 3 . Classes Destroyed 16 | 1 5 1 . 2 2 2 . 2 . . . . . 1 . Worker 5 | . 1 1 . . 1 . 1 . . . . . . . 1 Builder 5 | . . . . 1 1 1 . 1 . . . . . . 1 Tunneler 3 | 2 . . . . . . 1 . . . . . . . . Hauler 13 | . 2 . . . 5 2 3 1 . . . . . . . Recycler 4 | . . 1 . . . . . 3 . . . . . . . Mechanic 2 | . . . . . . . . 2 . . . . . . . Operator 1 | . 1 . . . . . . . . . . . . . . Watcher 2 | . . . . . . . . 2 . . . . . . . Swarmer 33 | . 3 6 . 3 . 4 . 12 . . . 5 . . . Grunt 59 | . 4 7 . 1 19 3 4 7 . . . 11 . 3 . Brawler 1 | . . . . . 1 . . . . . . . . . . Duelist 3 | . . . . 1 1 . . . . . . 1 . . . Sentry 18 | . . . . . 5 5 2 3 . 1 . 1 . . 1 Specialist 4 | . . . . . . . . . . . . . . 4 . Hunter 7 | . . . . . . 2 1 2 . . . . . . 2 Programmer 8 | . . . . . . 2 . 2 . 2 . 1 . . 1 Best Kill Streak 9 | 2 5 3 . 3 7 4 4 9 . 3 . 6 . 6 2 Combat Bots Only 9 | . 3 3 . 3 7 4 3 9 . 3 . 6 . 6 1 Max Kills in Single Turn 3 | 1 1 2 . 1 2 2 3 2 . 1 . 3 . 3 1 Gunslinging 1 | . . . . . . 1 1 . . . . 1 . . . Exploded 3 | . . 2 . 1 2 2 1 1 . . . 3 . 3 . Melee 1 | . . . . . . . . . . . . . . 1 . Uniques/NPCs Destroyed . | . . . . . . . . . . . . . . . . Combat | -11 -10 -10 -10 -9 -8 -7 -6 -5 -5 -5 -5 -4 -4 -4 -3 -------- Run | Yrd Mat Min Exi Min Mat Fac Fac Fac Upp Upp War Pro Fac DSF Res Hostile Shots Fired 1371 | . 32 77 . 21 128 191 102 147 . 18 . 111 . 287 257 Missed 409 | . 8 12 . 6 41 56 31 38 . 5 . 35 . 104 73 Damage Taken 15783 | . 242 815 . 189 2082 1589 957 2031 . 259 . 1546 . 2995 3078 Core 3160 | . 56 76 . 32 460 111 104 170 . 19 . 162 . 653 1317 Absorbed by Shields 154 | . . . . . . . . . . 20 . 36 . . 98 Regen/Repaired (Parts) 361 | . . . . . . . . . . . 361 . . . . Core Remaining (%) 61 | 100 . . . 34 16 84 87 . . . . 64 . 43 . Volleys Fired 379 | 3 38 57 . 15 64 33 21 63 . 5 . 35 . 12 33 Largest 5 | 2 2 2 . 2 4 4 5 5 . 5 . 5 . 5 2 Hottest 271 | 60 60 85 . 120 189 226 271 244 . 244 . 199 . 199 188 Shots Fired 1164 | 6 72 112 . 24 180 119 105 295 . 25 . 142 . 49 35 Gun 1149 | 6 72 111 . 20 173 119 105 295 . 25 . 141 . 48 34 Cannon 1 | . . . . . . . . . . . . . . . 1 Launcher 14 | . . 1 . 4 7 . . . . . . 1 . 1 . Special . | . . . . . . . . . . . . . . . . Kinetic 620 | 3 38 107 . . 83 27 31 166 . 16 . 94 . 27 28 Thermal 424 | 3 34 4 . 9 66 81 53 91 . 9 . 47 . 21 6 Explosive 12 | . . 1 . 4 7 . . . . . . . . . . Electromagnetic 106 | . . . . 11 24 11 21 38 . . . . . . 1 Entropic 2 | . . . . . . . . . . . . 1 . 1 . Robot Hit Streak 22 | 2 13 12 . 4 22 15 12 12 . 6 . 15 . 15 19 Robot Miss Streak 6 | 1 5 4 . 1 4 2 3 6 . 2 . 5 . 6 2 Penetration Max 1 | . . . . . . . 1 1 . . . . . 1 . Secondary Targets 17 | . . . . 1 2 2 2 3 . 1 . 5 . 1 . Max Gunslinging Chain 2 | . . . . 1 1 1 1 1 . 1 . 2 . 1 . Shots Hit Robots 762 | 3 43 73 . 15 112 90 73 166 . 17 . 98 . 36 36 Core Hits 364 | 3 21 33 . 9 69 38 29 86 . 7 . 39 . 15 15 Critical Kills 9 | . . 1 . . . . 1 2 . . . 4 . 1 . Critical Parts Destroyed 14 | . . . . . . . 1 4 . . . 2 . 4 3 Critical Strikes 38 | . . 1 . . 5 2 4 7 . 3 . 8 . 5 3 Burn 13 | . . . . . 5 2 1 . . 3 . 2 . . . Destroy 21 | . . 1 . . . . 2 7 . . . 6 . 4 1 Corrupt 1 | . . . . . . . 1 . . . . . . . . Smash 3 | . . . . . . . . . . . . . . 1 2 Melee Attacks 21 | . . . . . . . . 2 . . 8 . . 2 9 Impact 21 | . . . . . . . . 2 . . 8 . . 2 9 Slashing . | . . . . . . . . . . . . . . . . Piercing . | . . . . . . . . . . . . . . . . Sneak Attacks 1 | . . . . . . . . . . . . . . . 1 Combat Hostiles . | . . . . . . . . . . . . . . . . Follow-up Attacks . | . . . . . . . . . . . . . . . . Damage Inflicted 18408 | 38 434 709 . 494 2673 1967 1628 3986 . 419 . 2684 . 2300 1076 Guns 14330 | 38 434 614 . 177 1874 1664 1436 3763 . 419 . 2176 . 1114 621 Cannons 9 | . . . . . . . . . . . . . . . 9 Explosions 3471 | . . 95 . 317 799 303 192 171 . . . 508 . 1086 . Melee 598 | . . . . . . . . 52 . . . . . 100 446 Ramming . | . . . . . . . . . . . . . . . . Kinetic 7615 | 16 172 598 . . 721 365 441 2255 . 301 . 1555 . 749 442 Thermal 6152 | 22 262 16 . 184 1113 1208 832 1232 . 118 . 621 . 365 179 Explosive 1113 | . . 95 . 235 537 246 . . . . . . . . . Electromagnetic 1336 | . . . . 75 302 148 355 447 . . . . . . 9 Impact 598 | . . . . . . . . 52 . . . . . 100 446 Slashing . | . . . . . . . . . . . . . . . . Piercing . | . . . . . . . . . . . . . . . . Entropic 1594 | . . . . . . . . . . . . 508 . 1086 . Highest Corruption 51 | . 1 1 1 1 3 4 . 6 6 8 8 3 . . 51 Average Corruption 4 | . 1 1 1 1 3 3 . 2 6 7 8 2 . . 24 Corruption Purged . | . . . . . . . . . . . . . . . . Corruption Blocked . | . . . . . . . . . . . . . . . . Effects 116 | . 2 6 1 7 8 10 . 20 12 26 1 2 . . 21 Message Errors 35 | . 1 2 . 3 3 3 . 5 4 8 1 1 . . 4 Matter Fused 24 | . 1 . 1 2 . 4 . 4 3 4 . 1 . . 4 Heat Flow Errors 14 | . . 1 . . . 1 . 2 3 5 . . . . 2 Energy Discharges 4 | . . . . . . . . 2 . 2 . . . . . Parts Rejected 1 | . . . . . 1 . . . . . . . . . . Parts Fused 1 | . . . . . . . . 1 . . . . . . . Data Loss (minor) 13 | . . 1 . 2 . 1 . 1 2 4 . . . . 2 Data Loss (major) 2 | . . . . . 1 . . . . 1 . . . . . Misfires 5 | . . . . . 1 . . 1 . 1 . . . . 2 Alerts 6 | . . 2 . . 1 . . 1 . . . . . . 2 Misdirections 1 | . . . . . . . . . . . . . . . 1 Weapon Failures 10 | . . . . . 1 1 . 3 . 1 . . . . 4 Overload Shots 3 | . . . . . . . . . . . . 3 . . . Overflow Damage 408 | . . 8 . 53 36 . . . . . . 78 . 2 231 Projectiles . | . . . . . . . . . . . . . . . . Explosions 177 | . . 8 . 53 36 . . . . . . 78 . 2 . Melee 231 | . . . . . . . . . . . . . . . 231 Knockbacks 3 | . . . . . . . . . . . . . . . 3 Impact 3 | . . . . . . . . . . . . . . . 3 Kinetic . | . . . . . . . . . . . . . . . . Secondary . | . . . . . . . . . . . . . . . . Self-Inflicted Damage 462 | . . . . 31 227 143 61 . . . . . . . . Shots 11 | . . . . 1 6 2 2 . . . . . . . . Rammed . | . . . . . . . . . . . . . . . . Targets Rammed . | . . . . . . . . . . . . . . . . Kicked . | . . . . . . . . . . . . . . . . Crushed . | . . . . . . . . . . . . . . . . Highest Temperature 571 | 20 127 186 . 520 516 571 570 388 211 230 . 127 . 34 173 Average Temperature 113 | 15 39 26 . 235 107 162 233 82 97 68 . 47 . 24 65 Received Heat Transfer 3166 | . 84 366 . 30 747 285 378 342 . 21 . 259 . 504 150 Effects 49 | . . . . 9 8 15 14 3 . . . . . . . Shutdowns 7 | . . . . 1 1 . 4 1 . . . . . . . Energy Bleed 5 | . . . . 2 . 1 2 . . . . . . . . Interference 17 | . . . . . 5 8 2 2 . . . . . . . Matter Decay 4 | . . . . 1 1 2 . . . . . . . . . Short Circuit 2 | . . . . 1 . 1 . . . . . . . . . Damage (minor) 5 | . . . . . . 2 3 . . . . . . . . Damage (major) 8 | . . . . 4 . 1 3 . . . . . . . . Damage (core) 1 | . . . . . 1 . . . . . . . . . . Siege Activations . | . . . . . . . . . . . . . . . . Robots Corrupted 1 | . . . . . . . . . . . . . . . 1 Combat Hostiles 1 | . . . . . . . . . . . . . . . 1 Parts Fried 5 | . . . . . . . 2 . . . . . . . 3 Impact Corruptions 9 | . . . . . . . . . . . . . . . 9 Robots Melted 1 | . . . . . . 1 . . . . . . . . . Combat Hostiles 1 | . . . . . . 1 . . . . . . . . . Parts Melted 27 | . 1 . . . 5 10 1 2 . 4 . 4 . . . Heat Transferred 11861 | 50 600 37 . 359 2359 2442 1432 2024 . 407 . 1320 . 646 185 Parts Sabotaged . | . . . . . . . . . . . . . . . . Parts Stolen . | . . . . . . . . . . . . . . . . Parts Stripped . | . . . . . . . . . . . . . . . . Power Chain Reactions 9 | . . . . 1 3 1 3 1 . . . . . . . Alert | -11 -10 -10 -10 -9 -8 -7 -6 -5 -5 -5 -5 -4 -4 -4 -3 ------- Run | Yrd Mat Min Exi Min Mat Fac Fac Fac Upp Upp War Pro Fac DSF Res Peak Influence 669 | 10 240 247 . 143 440 443 333 669 . . . . 185 269 230 Initial 217 | . 6 35 . . . 120 217 163 . . . . 185 129 123 Average 228 | 2 145 163 . 53 215 228 253 486 . . . . 185 155 120 Maximum Alert Level 2 | . 1 1 . . 2 2 1 2 . . . . . 1 1 Low Security (%) 51 | 100 59 64 . 100 45 60 15 5 . . . . 100 87 84 Level 1 32 | . 40 35 . . 51 25 84 18 . . . . . 12 15 Level 2 15 | . . . . . 3 14 . 76 . . . . . . . Level 3 . | . . . . . . . . . . . . . . . . Level 4 . | . . . . . . . . . . . . . . . . Level 5 . | . . . . . . . . . . . . . . . . High Security . | . . . . . . . . . . . . . . . . Max Security . | . . . . . . . . . . . . . . . . Squads Dispatched 31 | . 2 1 . 1 6 3 6 6 . . . . . 2 4 Investigation 6 | . 2 . . 1 1 . 1 . . . . . . . 1 Extermination 5 | . . . . . . 2 . 2 . . . . . . 1 Reinforcement 11 | . . . . . 2 1 3 1 . . . . . 2 2 Assault 1 | . . 1 . . . . . . . . . . . . . Garrison 8 | . . . . . 3 . 2 3 . . . . . . . Intercept . | . . . . . . . . . . . . . . . . Searches Triggered . | . . . . . . . . . . . . . . . . Construction Impeded 1 | . . . . . . . . . . . . . . . 1 Haulers Reinforced 2 | . . . . . . . 1 1 . . . . . . . Active Scanning Responses . | . . . . . . . . . . . . . . . . Cargo Convoy Interrupts . | . . . . . . . . . . . . . . . . Stealth | -11 -10 -10 -10 -9 -8 -7 -6 -5 -5 -5 -5 -4 -4 -4 -3 --------- Run | Yrd Mat Min Exi Min Mat Fac Fac Fac Upp Upp War Pro Fac DSF Res Distress Signals 5 | . 1 . . . 1 . . 1 . . . . . . 2 Communications Jammed . | . . . . . . . . . . . . . . . . Distress Signals . | . . . . . . . . . . . . . . . . Times Spotted 208 | . 13 22 . 5 38 18 11 39 . 3 1 24 . 11 23 Peak Tracking Total 11 | . 5 4 . 3 6 5 3 6 . 3 . 4 . 8 11 Tactical Retreats 14 | . . 4 . . 2 . 1 2 . . . 3 . 1 1 Traps | -11 -10 -10 -10 -9 -8 -7 -6 -5 -5 -5 -5 -4 -4 -4 -3 ------- Run | Yrd Mat Min Exi Min Mat Fac Fac Fac Upp Upp War Pro Fac DSF Res Traps Triggered 13 | . 3 1 . . . 2 2 1 . . . . . 2 2 Indirectly . | . . . . . . . . . . . . . . . . Trap Hack Attempts . | . . . . . . . . . . . . . . . . Triggered . | . . . . . . . . . . . . . . . . Disarmed . | . . . . . . . . . . . . . . . . Reprogrammed . | . . . . . . . . . . . . . . . . Reused . | . . . . . . . . . . . . . . . . Traps Extracted . | . . . . . . . . . . . . . . . . Installed . | . . . . . . . . . . . . . . . . Triggered 15 | . . . . . . . . . . 1 14 . . . . Machines | -11 -10 -10 -10 -9 -8 -7 -6 -5 -5 -5 -5 -4 -4 -4 -3 ---------- Run | Yrd Mat Min Exi Min Mat Fac Fac Fac Upp Upp War Pro Fac DSF Res Machines Disabled 10 | . . . . . 2 3 1 3 . . . . . 1 . Max in Single Turn 3 | . . . . . 1 3 1 1 . . . . . 1 . Machines Repaired . | . . . . . . . . . . . . . . . . Machines Dismantled . | . . . . . . . . . . . . . . . . Machines Sabotaged . | . . . . . . . . . . . . . . . . Overloaded Fab Kills . | . . . . . . . . . . . . . . . . Hacking | -11 -10 -10 -10 -9 -8 -7 -6 -5 -5 -5 -5 -4 -4 -4 -3 --------- Run | Yrd Mat Min Exi Min Mat Fac Fac Fac Upp Upp War Pro Fac DSF Res Machines Accessed 34 | . 5 1 1 1 5 3 6 4 . . 4 . 1 . 3 Terminals 23 | . 5 . . . 5 3 4 3 . . . . 1 . 2 Fabricators . | . . . . . . . . . . . . . . . . Repair Stations 2 | . . . . . . . 1 1 . . . . . . . Recycling Units 1 | . . . . . . . . . . . . . . . 1 Scanalyzers . | . . . . . . . . . . . . . . . . Garrison Access 1 | . . . . . . . 1 . . . . . . . . Total Hacks 100 | . 17 1 23 1 15 9 9 9 . . 8 . 1 . 7 Successful 59 | . 8 1 23 1 8 5 . 3 . . 8 . 1 . 1 Failed 41 | . 9 . . . 7 4 9 6 . . . . . . 6 Catastrophic 10 | . 2 . . . 1 2 2 2 . . . . . . 1 Database Lockouts . | . . . . . . . . . . . . . . . . Manual 46 | . 13 . 1 . 11 7 5 7 . . . . . . 2 Terminals 60 | . 17 . . . 15 9 7 7 . . . . 1 . 4 Fabricators . | . . . . . . . . . . . . . . . . Repair Stations 3 | . . . . . . . 1 2 . . . . . . . Recycling Units 3 | . . . . . . . . . . . . . . . 3 Scanalyzers . | . . . . . . . . . . . . . . . . Garrison Access 1 | . . . . . . . 1 . . . . . . . . Terminal Hacks 45 | . 4 1 23 1 4 2 . 1 . . 8 . 1 . . Record 30 | . 1 . 23 . . . . . . . 6 . . . . Prototype ID Bank 1 | . 1 . . . . . . . . . . . . . . Open Door 4 | . . 1 . 1 . . . . . . 2 . . . . Open DSF 1 | . . . . . . . . . . . . . 1 . . Branch Access Points 3 | . 1 . . . 1 . . 1 . . . . . . . Unreport Threat 1 | . . . . . 1 . . . . . . . . . . Locate Traps 3 | . . . . . 2 1 . . . . . . . . . Recall Extermination 1 | . . . . . . 1 . . . . . . . . . Registered Components 1 | . 1 . . . . . . . . . . . . . . Fabricator Hacks . | . . . . . . . . . . . . . . . . Repair Station Hacks 1 | . . . . . . . . 1 . . . . . . . Scan Component 1 | . . . . . . . . 1 . . . . . . . Recycling Unit Hacks . | . . . . . . . . . . . . . . . . Scanalyzer . | . . . . . . . . . . . . . . . . Garrison Access Hacks . | . . . . . . . . . . . . . . . . Unauthorized Hacks 13 | . 4 . . . 4 3 . 1 . . . . . . 1 Terminals 13 | . 4 . . . 4 3 . 1 . . . . . . 1 Track 1 | . 1 . . . . . . . . . . . . . . Assimilate 1 | . . . . . 1 . . . . . . . . . . Botnet 11 | . 3 . . . 3 3 . 1 . . . . . . 1 Fabricators . | . . . . . . . . . . . . . . . . Repair Stations . | . . . . . . . . . . . . . . . . Recycling Units . | . . . . . . . . . . . . . . . . Scanalyzers . | . . . . . . . . . . . . . . . . Garrison Access . | . . . . . . . . . . . . . . . . Data Cores Recovered 1 | . 1 . . . . . . . . . . . . . . Used 1 | . 1 . . . . . . . . . . . . . . Hacking Detections 26 | . 5 . . . 5 3 6 4 . . . . . . 3 Full Trace Events 6 | . 2 . . . 2 . 1 . . . . . . . 1 Feedback Events . | . . . . . . . . . . . . . . . . Feedback Blocked . | . . . . . . . . . . . . . . . . Robot Schematics Acquired . | . . . . . . . . . . . . . . . . Robots Built . | . . . . . . . . . . . . . . . . Authchips . | . . . . . . . . . . . . . . . . Time . | . . . . . . . . . . . . . . . . Total Robot Build Rating . | . . . . . . . . . . . . . . . . Part Schematics Acquired . | . . . . . . . . . . . . . . . . Parts Built . | . . . . . . . . . . . . . . . . Authchips . | . . . . . . . . . . . . . . . . Time . | . . . . . . . . . . . . . . . . Total Part Build Rating . | . . . . . . . . . . . . . . . . Parts Repaired . | . . . . . . . . . . . . . . . . Time . | . . . . . . . . . . . . . . . . Parts Recycled . | . . . . . . . . . . . . . . . . Recycled Matter . | . . . . . . . . . . . . . . . . Retrieved Matter . | . . . . . . . . . . . . . . . . Retrieved Components . | . . . . . . . . . . . . . . . . Parts Scanalyzed . | . . . . . . . . . . . . . . . . Part Schematics Acquired . | . . . . . . . . . . . . . . . . Parts Damaged . | . . . . . . . . . . . . . . . . Bothacking | -11 -10 -10 -10 -9 -8 -7 -6 -5 -5 -5 -5 -4 -4 -4 -3 ------------ Run | Yrd Mat Min Exi Min Mat Fac Fac Fac Upp Upp War Pro Fac DSF Res Used RIF Installer . | . . . . . . . . . . . . . . . . Robots Hacked . | . . . . . . . . . . . . . . . . Non-combat . | . . . . . . . . . . . . . . . . Combat . | . . . . . . . . . . . . . . . . Robot Hacks Applied . | . . . . . . . . . . . . . . . . Relay Couplers Released . | . . . . . . . . . . . . . . . . Fabnet Peak Effective % . | . . . . . . . . . . . . . . . . Robots Rewired . | . . . . . . . . . . . . . . . . Allies Hacked . | . . . . . . . . . . . . . . . . Hacks Repelled . | . . . . . . . . . . . . . . . . Allies | -11 -10 -10 -10 -9 -8 -7 -6 -5 -5 -5 -5 -4 -4 -4 -3 -------- Run | Yrd Mat Min Exi Min Mat Fac Fac Fac Upp Upp War Pro Fac DSF Res Total Allies 2 | . . 1 . . 1 . . . . . . . . . . Largest Group 1 | . . 1 . . 1 . . . . . . . . . . Highest-Rated Group 31 | . . 31 . . 10 . . . . . . . . . . Highest-Rated Ally 31 | . . 31 . . 10 . . . . . . . . . . Total Orders . | . . . . . . . . . . . . . . . . Ally Attacks 7 | . . 7 . . . . . . . . . . . . . Total Damage 105 | . . 105 . . . . . . . . . . . . . Kills 1 | . . 1 . . . . . . . . . . . . . Allies Corrupted . | . . . . . . . . . . . . . . . . Allies Melted . | . . . . . . . . . . . . . . . . Intel | -11 -10 -10 -10 -9 -8 -7 -6 -5 -5 -5 -5 -4 -4 -4 -3 ------- Run | Yrd Mat Min Exi Min Mat Fac Fac Fac Upp Upp War Pro Fac DSF Res Robot Analysis Total . | . . . . . . . . . . . . . . . . Derelict Logs Recovered 7 | . . 1 . 1 . . . . 1 2 . 2 . . . Drone Launches . | . . . . . . . . . . . . . . . . Drone Recoveries . | . . . . . . . . . . . . . . . . Exploration | -11 -10 -10 -10 -9 -8 -7 -6 -5 -5 -5 -5 -4 -4 -4 -3 ------------- Run | Yrd Mat Min Exi Min Mat Fac Fac Fac Upp Upp War Pro Fac DSF Res Turns Passed 10147 | 70 629 825 201 565 1056 1152 658 1125 429 637 1373 663 36 158 570 Spaces Moved 6375 | 47 418 452 212 448 608 773 450 564 294 344 883 354 24 60 444 Core 342 | 3 2 . . . 56 2 . . . . . . . 8 271 Treads 257 | 2 1 144 . 4 1 . . . . . . . . . 105 Legs 153 | . . . . . 91 . . . . . . . . 8 54 Wheels 5609 | 42 415 308 212 444 460 771 450 564 294 344 883 354 24 44 . Hover . | . . . . . . . . . . . . . . . . Flight 14 | . . . . . . . . . . . . . . . 14 Fastest Speed 50 | 50 100 95 95 95 50 115 115 115 145 145 145 145 145 50 50 Average Speed 125 | 99 114 126 95 110 116 118 115 144 145 145 145 145 145 151 92 Slowest Speed 1300 | 160 400 160 95 160 250 1300 115 145 145 145 145 145 145 260 350 Overloaded Moves . | . . . . . . . . . . . . . . . . Propulsion Burnouts . | . . . . . . . . . . . . . . . . Robots Hopped . | . . . . . . . . . . . . . . . . Cave-ins Triggered . | . . . . . . . . . . . . . . . . Exploration Rate (%) 41 | 4 66 76 61 64 50 20 18 14 45 54 84 57 1 45 10 Regions Visited 15 Branch Regions 7 Pre-discovered Areas 3 | . . . 1 . . . . . . 1 . 1 . . . Known Exits Taken 3 | . 1 . . . . . . 1 . . . . 1 . . Unknown Exits Taken 11 | 1 . 1 1 1 1 1 1 . 1 1 1 1 . . . Scrap Searched 9 | . . 2 . 1 . . . . 2 2 . 2 . . . Spaces Dug 75 | . . 7 . . 10 . . 1 . . 4 3 . 50 . Terrain Destroyed 235 | . . 7 . 28 50 43 12 14 . . 4 26 . 50 1 Melee 5 | . . . . . . . . 1 . . 4 . . . . Projectile 26 | . . . . . . . . 7 . . . 18 . . 1 AOE 204 | . . 7 . 28 50 43 12 6 . . . 8 . 50 . Terrain Rammed . | . . . . . . . . . . . . . . . . Walls Destroyed . | . . . . . . . . . . . . . . . . Machines Disabled . | . . . . . . . . . . . . . . . . Actions | -11 -10 -10 -10 -9 -8 -7 -6 -5 -5 -5 -5 -4 -4 -4 -3 --------- Run | Yrd Mat Min Exi Min Mat Fac Fac Fac Upp Upp War Pro Fac DSF Res Total 7741 | 61 504 614 211 496 850 935 546 708 297 470 962 423 25 93 546 Wait 589 | . 14 88 . 18 83 88 33 38 . 118 56 22 . . 31 Move 6360 | 46 417 451 211 447 607 772 449 563 293 343 882 353 23 59 444 Hop . | . . . . . . . . . . . . . . . . Pick Up 103 | 5 12 5 . 5 24 14 8 13 2 1 4 2 . 4 4 Fast Attach 61 | 7 5 1 . 2 22 4 4 3 . . 2 . . 1 10 Attach 69 | . 1 6 . 1 14 6 5 10 1 . . 7 2 5 11 Detach 12 | . . . . . 3 . . . . . 1 3 . 1 4 Swap 33 | . 7 3 . 3 4 2 2 8 . 1 2 1 . . . Drop 82 | . 10 3 . 5 29 8 8 8 1 2 7 . . 1 . Fire 379 | 3 38 57 . 15 64 33 21 63 . 5 . 35 . 12 33 Melee 21 | . . . . . . . . 2 . . 8 . . 2 9 Ram . | . . . . . . . . . . . . . . . . Kick . | . . . . . . . . . . . . . . . . Crush . | . . . . . . . . . . . . . . . . Escape Stasis 32 | . . . . . . 8 16 . . . . . . 8 . Rewire . | . . . . . . . . . . . . . . . . Trap . | . . . . . . . . . . . . . . . . Miscellaneous . | . . . . . . . . . . . . . . . . Route ------- -11/Scrapyard -10/Materials (discovered 4 exits: [*Mat x2] / *Min x2) -10/Mines (discovered 2 exits: [*Mat] / *Exi) -10/Exiles -9/Mines -8/Materials -7/Factory (discovered 3 exits: *Fac / [*Sto] / [*Low]) -6/Factory (discovered 2 exits: *Fac x2) -5/Factory (discovered 2 exits: *Upp x2) -5/Upper Caves -5/Upper Caves -5/Warlord -4/Proximity Caves -4/Factory -4/DSF -3/Research (discovered 1 exit: Arm) History --------- Turn | Location | Event 23 | -11/Scrapyard | Discovered new exit (range 15) 71 | -11/Scrapyard | Entered Materials 244 | -10/Materials | Discovered new exit (range 15) 267 | -10/Materials | Identified exit to Mines 313 | -10/Materials | Build established: Mutant 489 | -10/Materials | Discovered new exit (range 10) 700 | -10/Materials | Entered Mines 881 | -10/Mines | Discovered new exit (range 8) 1019 | -10/Mines | Met a Derelict who couldn't figure out how to use a Trap Extractor 1156 | -10/Mines | Learned 2 Materials zone layouts 1386 | -10/Mines | Deemed a non-threat by the Exiles lab entrance 1386 | -10/Mines | Discovered new exit (range 5) 1413 | -10/Mines | Met a Derelict testing a Signal Generator 1495 | -10/Mines | Core integrity fell below 50% 1525 | -10/Mines | Entered Exiles 1547 | -10/Exiles | Met 8R-AWN 1564 | -10/Exiles | Met EX-HEX 1594 | -10/Exiles | Met EX-BIN 1669 | -10/Exiles | Met EX-DEC 1677 | -10/Exiles | Learned location of Zion (-6) 1715 | -10/Exiles | Discovered new exit (range 14) 1726 | -10/Exiles | Entered Mines 1731 | -9/Mines | Met a Derelict shopkeep closing up shop 2082 | -9/Mines | Discovered new exit (range 10) 2180 | -9/Mines | Received a Rocket Launcher from a helpful Derelict 2262 | -9/Mines | Build established: Scavenger-Mutant 2291 | -9/Mines | Entered Materials 2291 | -8/Materials | Evolved 4 slots: Utility x2, Weapon x2 2595 | -8/Materials | Build established: Scavenger-Gunner 2920 | -8/Materials | Garrison activated, responded to threat 2957 | -8/Materials | Core integrity fell below 50% 2974 | -8/Materials | Destroyed 7 combat bots 2999 | -8/Materials | Lost 14 parts (1p3n4u6w) 3026 | -8/Materials | Discovered new exit (range 13) 3060 | -8/Materials | Core integrity fell below 20% 3347 | -8/Materials | Entered Factory 3347 | -7/Factory | Evolved 2 slots: Propulsion x2 3413 | -7/Factory | Discovered new exit (range 15) 3733 | -7/Factory | Build established: Tank 3864 | -7/Factory | Discovered new exit (range 13) 4240 | -7/Factory | Discovered new exit (range 11) 4499 | -7/Factory | Entered another Factory area 4499 | -6/Factory | Evolved 2 slots: Utility x1, Weapon x1 4818 | -6/Factory | Discovered new exit (range 11) 4988 | -6/Factory | Garrison activated, responded to threat 4995 | -6/Factory | Lost 3 parts (1u2w) 5104 | -6/Factory | Discovered new exit (range 15) 5157 | -6/Factory | Entered another Factory area 5157 | -5/Factory | Evolved 2 slots: Utility x2 5203 | -5/Factory | Identified exit to Upper Caves 5297 | -5/Factory | Lost 3 parts (3w) 5589 | -5/Factory | Garrison activated, responded to threat 5594 | -5/Factory | Build established: Scavenger-Tank 5637 | -5/Factory | Destroyed 9 combat bots 6282 | -5/Factory | Entered Upper Caves 6316 | -5/Upper Caves | Learned Factory stockpile data 6517 | -5/Upper Caves | Build established: Tank 6564 | -5/Upper Caves | Spotted B-75 Beast 6654 | -5/Upper Caves | Discovered new exit (range 5) 6711 | -5/Upper Caves | Entered another Upper Caves area 6847 | -5/Upper Caves | Attracted the attention of an 0b10 checkpoint 7041 | -5/Upper Caves | Learned location of Armory (-3) 7074 | -5/Upper Caves | Learned Factory security intel 7180 | -5/Upper Caves | Build established: Scavenger-Tank 7302 | -5/Upper Caves | Discovered new exit (range 6) 7348 | -5/Upper Caves | Entered Warlord 7396 | -5/Warlord | System corruption cleaned by Quarantine Array 7726 | -5/Warlord | Build established: Tank 8036 | -5/Warlord | Opened side exit 8126 | -5/Warlord | Warlord's base attacked by MAIN.C 8296 | -5/Warlord | Met Warlord 8427 | -5/Warlord | Found Prototype Launcher 8476 | -5/Warlord | Warlord forces counterattacked 8690 | -5/Warlord | Found Prototype Device 8690 | -5/Warlord | Identified Adv. Kinecellerator 8694 | -5/Warlord | Found Prototype Processor 8694 | -5/Warlord | Identified Exp. Targeting Computer 8711 | -5/Warlord | Discovered new exit (range 8) 8721 | -5/Warlord | Entered Proximity Caves 8963 | -4/Proximity Caves | Attracted the attention of an 0b10 checkpoint 9000 | -4/Proximity Caves | Identified Vortex Catalyst Activator 9202 | -4/Proximity Caves | Build established: Scavenger-Tank 9218 | -4/Proximity Caves | Discovered new exit (range 14) 9326 | -4/Proximity Caves | Learned location of Testing (-2) 9384 | -4/Proximity Caves | Entered Factory 9384 | -4/Factory | Evolved 2 slots: Power x1, Utility x1 9414 | -4/Factory | Identified exit to DSF 9420 | -4/Factory | Entered DSF 9458 | -4/DSF | Additional patrols routed to DSF 9468 | -4/DSF | Discovered new exit (range 11) 9496 | -4/DSF | Found Prototype Hackware 9499 | -4/DSF | Found Prototype Hackware 9501 | -4/DSF | Found Prototype Hackware 9504 | -4/DSF | Found Prototype Hackware 9575 | -4/DSF | Core integrity fell below 50% 9578 | -4/DSF | Entered Research 9578 | -3/Research | Evolved 2 slots: Utility x2 9578 | -3/Research | Identified Exp. System Shield (x2) 9579 | -3/Research | Identified exit to Armory 9597 | -3/Research | Lost 16 parts (3p3n5u5w) 9817 | -3/Research | Lost 4 parts (1p2u1w) 9885 | -3/Research | System corruption reached 10% 9893 | -3/Research | Core integrity fell below 50% 9904 | -3/Research | Lost 3 parts (1n1u1w) 10010 | -3/Research | System corruption reached 30% 10087 | -3/Research | Core integrity fell below 20% 10116 | -3/Research | Lost 11 parts (1p3n3u4w) 10148 | -3/Research | Destroyed by S-43 Plague with Heavy Machine Gun Last Messages --------------- 10084_ System corrupted: Matter fused (-9). 10085_ Coil Gun destroyed. 10086_ Acquired 82 matter. 10086_ Penetrated by Slug. 10090_ Slug penetrates Wave Intensifier. 10090_ Penetrated by Slug. 10099_ System corrupted: Component data lost. 10115_ System corrupted: Heat flow error (+219). 10121_ W-44 Eye sends out distress signal. 10125_ Slug penetrates Wall. 10125_ Penetrated by Slug. 10130_ System corrupted: IFF burst signal emitted. 10139_ K-01 Serf collects debris. 10140_ K-01 Serf cleans the Terminal. 10147_ Penetrated by Slug. 10147_ Slug penetrates Wall. 10148_ Penetrated by Slug. 10148_ Slug penetrates Door. [Achievement: This Is Interesting...] [Achievement: Achiever] Map ----- +----------------------------------------------------+ | ?#???##+######## # """S"" ## # | | ??#?## # # ## # | | ??#??# # # ## ]]! # | | ??#??# """ # ###+######+#### ]!! # | | ?????# """ + % # ]!! # | | ?????# """ # ^ %# # | | ?????# # + # | | ?????# # % # # | | ????## # """ % % # "" # | | #????########### """ # "" # | | ?????#?????????# """ # "Y # | | ???????????????# """ "###### "" # | | ???????????????# """ ##????# "" # | | ?????#?#??#????# """ ####??# %# | | ?????????????#?# """ #??# # | | ????????????#### #??########## | | ?????????????#" + ?? ??????? | | ??????????#??#"" # ??????? | | ?????????#???#"" """ #? ?????? | | ?????????#???#"" """ #?? ?????? | | ?????????????#"" """ #? ?? ?????? | | ?????????????#"T """ ######?????#????#? | | ?????????????#"" """ #????????????????? | | ?????????????#"" """ #??? ???????? ???? | | ???????#?????#"" """ #????????????????? | | #????????????#"" @#??????????? ????? | | ?????????????#" + ???????????????? | | ?????????????### # ???????????????? | | ????????????#??# #????????????????? | | ???????????????# #????????????????? | | ???? ??????????# #????????????????? | | ???????????????#h !! #????????????????? | | ???????????????# ! #?? ?????????????? | | ???????????????#h #????????????????? | | ???????????????# ????????????????? | | ???????????????s #???????????????? | | ?????"???????? # #???????????????? | | ???????????????# ! ????????????????? | | ???????????????# ?????????????????? | | ????????????????? ?????????????????? | | ??????????????????????? ?????????????????? | | ???????????????????????????????????????????? | | ???????????????????????????????????????????? | | ???????????????????????????????????????????? | | ???????????????????????????????????????????? | | ???????????????????????????????????????????? | | ???????????????????????????????????????????? | | ???????????????????????????????????????????? | | ???????????????????????????????????????????? | | ???????????????????????????????????????????? | +----------------------------------------------------+ Best States ------------- Heat Dissipation 81 Energy Generation 32 Energy Capacity 340 Matter Stores 300 Matter Capacity 300 Sight Range 16 Terrain Scan Range 20 Terrain Scan Density 10 Armor Coverage 825 Weapon Cycling 15 Evasion (%) 57 Targeting Accuracy 12 Core Analysis 6 Recoil Reduction 6 Kinecelleration 50 Defensive Hacking 46 Item Schematics ----------------- None Robot Schematics ------------------ None Fabricated ------------ Nothing Alien Tech Used ----------------- None Achievements -------------- Achiever Leap Before You Look Please Form A Line Remodeling This Is Interesting... Troublemaker Use The Force Z1$+NX3F=JRE3_ZNQR Challenges ------------ None Game ------ Seed TripodEnhancedInsulator Manual? 0 Play Time 01:48:19 Cumulative 16.1 hours Start 2024.04.24 @ 20:58:10 End 2024.04.24 @ 22:47:19 Sessions 1 Manual Loads 0 Difficulty Rogue Special Mode None Game No. 10 Rogue 10 Adventurer 0 Explorer 0 Win Type - Total 2 Types 2/0/0/0/0/0/0/0/0 Lore% 25 Gallery% 21 Achievement% 26 Wizard Run 0 Options --------- Layout 1 ASCII 0 Keyboard 0 Movement Vi Keybinds 0 Fullscreen 1 Font 18/SmallcapsGlow Map View 54x44 Zoom Use 0% Tactical HUD 1 Map Filters NONE Filters NONE Steam 0 RUN: 48307d8f-eb4b-4e5c-b134-df13b6458abb